[Event "Bangabandhu Premier Div League 2022"]
[Site "Dhaka"]
[Date "2022.12.05"]
[Round "6.5"]
[White "Haque, Rezaul"]
[Black "Hrishin, Talukder"]
[Result "1-0"]
[ECO "A06"]
[WhiteElo "1949"]
[BlackElo "1673"]
[Annotator "TA"]
[PlyCount "39"]
[EventDate "2022.12.01"]
[EventCountry "BAN"]
[SourceTitle "playchess.com"]
[Source "ChessBase"]
[SourceQuality "1"]
[TimeControl "40/5400+30:1800+30"]

{[%evp 9,39,-34,-27,-26,-13,-24,-24,-34,-7,6,35,2,15,24,139,0,179,89,264,276,294,234,223,227,352,363,610,611,601,584,642,662]} 1. Nf3 {[%emt 1:31:00]} Nf6 {[%emt 0:05:26]} 2. d3 {[%emt 0:00:00]} d5 {[%emt 1:26:04]} 3. Bg5 {[%emt 0:01:00][%cal Bc1g5,Bg5h4,Bh4g3][%mdl 32]} Nbd7 {[%emt 0:00:00]} 4. Nbd2 {[%emt 0:00:30]} e5 {[%emt 0:00:00]} 5. c3 {[%emt 0:00:30]} Bd6 {[%emt 0:00:00]} 6. e4 {[%emt 0:00:00] A06: Réti Opening: 1 Nf3 d5.} c6 {[%emt 0:00:00]} 7. Be2 {[%emt 0:00:00]} h6 {[%emt 0:02:30]} 8. Bh4 {[%emt 0:00:00] Black has an edge.} Qe7 {[%emt 0:00:00] [#]} 9. O-O $146 {[%emt 0:02:00]} ({Predecessor:} 9. Qc2 b5 10. O-O g5 11. Bg3 dxe4 12. dxe4 h5 13. h4 g4 14. Ne1 Nf8 15. Nc4 Bc7 16. Rd1 Ng6 17. Qd3 Be6 18. f3 Rd8 {0-1 (18) Boava,D-Steinhoff,I (2225) Rio Claro 1998}) 9... Nf8 {[%emt 0:01:00]} 10. Re1 {[%emt 0:00:30]} g5 {[%emt 0:00:00] Prevents d4.} 11. Bg3 {[%emt 0:00:30] Threatens to win with exd5.} Ng6 {[%emt 0:00:00] [#]} (11... dxe4 $1 $11 {remains equal.} 12. dxe4 (12. Nxe4 Nxe4 13. dxe4 Ng6 $11) 12... Ng6) 12. Bf1 {[%emt 0:00:30]} (12. exd5 $1 $16 cxd5 13. Nxe5 Nxe5 14. Bf1) 12... Kf8 $2 {[%emt 0:01:30] [#]} (12... dxe4 $1 $11 {and Black is okay.} 13. dxe4 (13. Nxe4 Nxe4 14. Nxe5 Bxe5 $11) 13... O-O) 13. d4 {[%emt 0:00:30]} (13. exd5 $1 $18 {is more deadly.} Nxd5 14. d4) 13... Bg4 $2 {[%emt 0:00:00]} (13... Nxe4 $16 14. Nxe4 dxe4 15. Nxe5 (15. Rxe4 f5 $11) 15... Bf5) 14. dxe5 $18 Nxe5 {[%emt 0:01:00]} 15. Bxe5 {[%emt 0:01:00]} Bxe5 {[%emt 0:00:00]} 16. exd5 {[%emt 0:00:00]} Nxd5 {[%emt 0:01:00]} (16... Rd8 {was necessary.} 17. Qc2 (17. Rxe5 Qxe5 18. Nxe5 Bxd1 $18) 17... Rxd5) 17. Nc4 {[%emt 0:00:00]} ({Weaker is} 17. Rxe5 Qxe5 18. Nxe5 Bxd1 $18) 17... f6 {[%emt 0:00:00] [#]} (17... Bxh2+ 18. Kxh2 Qf6) 18. Nfxe5 $1 {[%emt 0:00:00][%cal Bf3e5,Be5g6,Bg6e7][%mdl 32] aiming for Ng6+. White is clearly winning.} Bxd1 {[%emt 0:00:17]} 19. Ng6+ {[%emt 0:00:00][%mdl 64] Discovered Attack, Double Attack. Pair of Knights!} Kf7 {[%emt 0:00:37]} 20. Nxe7 {[%emt 0:00:00] Black got outplayed after the opening.   Weighted Error Value: White=0.26 (precise) /Black=0.82} 1-0

[Event "Bangabandhu Premier Div League 2022"]
[Site "Dhaka"]
[Date "2022.12.05"]
[Round "6.6"]
[White "Mendonca, Leon Luke"]
[Black "Muthaiah AL"]
[Result "1/2-1/2"]
[ECO "D41"]
[WhiteElo "2565"]
[BlackElo "2454"]
[Annotator "TA"]
[PlyCount "83"]
[EventDate "2022.11.30"]
[EventType "team-tourn"]
[EventCountry "BAN"]
[SourceTitle "playchess.com"]
[Source "ChessBase"]
[SourceQuality "1"]
[TimeControl "40/5400+30:1800+30"]

{[%evp 19,83,21,22,0,-11,-7,0,0,0,0,5,0,17,14,26,22,21,23,20,-12,0,-9,0,0,13,0,13,0,27,20,26,26,20,21,45,27,61,55,35,51,98,98,98,0,0,0,0,0,0,0,0,0,0,0,0,0,0,0,0,0,0,0,0,0,0,0]} 1. d4 {[%emt 0:01:32]} Nf6 {[%emt 0:01:04]} 2. c4 {[%emt 0:00:07]} e6 {[%emt 0:00:31]} 3. Nc3 {[%emt 0:00:06]} d5 {[%emt 0:00:30]} 4. cxd5 {[%emt 0:00:13]} Nxd5 {[%emt 0:00:28]} 5. e4 {[%emt 0:02:32]} Nxc3 {[%emt 0:00:31]} 6. bxc3 {[%emt 0:00:02]} c5 {[%emt 0:00:28]} 7. Nf3 {[%emt 0:00:50]} cxd4 {[%emt 0:00:35]} 8. cxd4 {[%emt 0:00:05]} Bb4+ {[%emt 0:00:30]} 9. Bd2 {[%emt 0:00:06]} Bxd2+ {[%emt 0:00:25]} 10. Qxd2 {[%emt 0:00:05]} O-O {[%emt 0:00:31]} 11. h4 {[%emt 0:01:15] D41: Queen's Gambit Declined: Semi-Tarrasch with 5 cxd5.} b6 {[%emt 0:03:30]} 12. Rd1 {[%emt 0:00:43]} Bb7 {[%emt 0:05:41]} 13. Bd3 {[%emt 0:00:14] [#]} h6 $146 {[%emt 0:02:25]} ({Predecessor:} 13... Nc6 14. Qe3 Qe7 15. O-O Rad8 16. Rfe1 Rfe8 17. h5 h6 18. d5 Nb4 19. Bb1 e5 {0-1 (44) Gukesh,D (2684)-Esipenko,A (2682) Biel 2022}) 14. O-O {[%emt 0:04:32]} Nd7 {[%emt 0:03:05]} 15. Rfe1 {[%emt 0:02:14]} Re8 {[%emt 0:07:46]} 16. Qf4 {[%emt 0:12:01]} Qb8 {[%emt 0:14:22]} 17. e5 {[%emt 0:05:54]} Nf6 {[%emt 0:10:40]} 18. Rc1 {[%emt 0:08:14]} Nd5 {[%emt 0:03:15]} 19. Qg3 {[%emt 0:17:46]} (19. Qe4 {simplifies} f5 20. exf6 Nxf6 21. Qe2) 19... Rc8 {[%emt 0:08:57]} 20. Nd2 {[%emt 0:02:25][%cal Bf3d2,Bd2e4,Be4d6,Bd6b5][%mdl 32]} Rxc1 {[%emt 0:02:12]} 21. Rxc1 {[%emt 0:00:02]} Qd8 {[%emt 0:06:58]} 22. Ne4 {[%emt 0:05:35]} Rc8 {[%emt 0:00:39]} 23. Re1 {[%emt 0:17:05]} Ba8 {[%emt 0:07:00]} 24. Nd6 $36 {[%emt 0:04:10][%mdl 2048] White is more active.} Rc7 {[%emt 0:05:29]} 25. Nb5 {[%emt 0:05:13]} Rd7 {[%emt 0:02:25]} 26. Rc1 {[%emt 0:04:38]} f5 {[%emt 0:06:13]} (26... Qe7 {is interesting.} 27. Nd6 Rc7 28. Bc4 Bc6) 27. Be2 {[%emt 0:04:18]} a6 {[%emt 0:05:28]} 28. Nd6 {[%emt 0:00:39] [#] Hoping for Rc8.} Rc7 {[%emt 0:00:06] Against Rc8} 29. Rxc7 {[%emt 0:01:35]} Qxc7 {[%emt 0:00:02]} (29... Nxc7 $14 30. a4 (30. Qg6 Qd7 $14) 30... Bc6) 30. Bxa6 $16 {[%emt 0:00:47] Threatens to win with Bc4. White is much more active.} Qc1+ {[%emt 0:00:42]} 31. Bf1 {[%emt 0:00:28]} (31. Kh2 $16) 31... Nc3 $11 {[%emt 0:01:43] [#] ( -> ...Ne2+). The position is equal.} 32. Qe3 {[%emt 0:00:23] Against Ne2+} Qa1 {[%emt 0:00:57]} 33. h5 {[%emt 0:00:35]} Bd5 {[%emt 0:00:35]} 34. Qd3 {[%emt 0:00:29]} Ne4 {[%emt 0:01:06]} 35. a3 {[%emt 0:00:34]} Qb2 {[%emt 0:00:34]} 36. Qe3 {[%emt 0:00:30]} Qa1 {[%emt 0:00:30]} 37. Qd3 {[%emt 0:00:28]} Qb2 {[%emt 0:00:07]} 38. Nxe4 {[%emt 0:00:28]} fxe4 {[%emt 0:00:08]} 39. Qb5 {[%emt 0:00:36]} Qxd4 {[%emt 0:01:07]} 40. Qe8+ {[%emt 0:00:21]} Kh7 {[%emt 0:00:02]} 41. Qg6+ {[%emt 0:30:29]} Kh8 {[%emt 0:30:19]} 42. Qe8+ {[%emt 0:00:24] Weighted Error Value: White=0.06 (flawless) /Black=0.07 (flawless)} 1/2-1/2

[Event "Bangabandhu Premier Div League 2022"]
[Site "Dhaka"]
[Date "2022.12.05"]
[Round "6.6"]
[White "Aaryan Varshney"]
[Black "Rahman, Siddiqur"]
[Result "1-0"]
[ECO "D15"]
[WhiteElo "2312"]
[BlackElo "1970"]
[Annotator "TA"]
[PlyCount "57"]
[EventDate "2022.12.01"]
[EventCountry "BAN"]
[SourceTitle "playchess.com"]
[Source "ChessBase"]
[SourceQuality "1"]
[TimeControl "40/5400+30:1800+30"]

{[%evp 11,57,11,0,-14,4,-5,16,17,112,115,113,107,104,101,107,104,102,113,106,101,125,94,115,110,118,113,108,91,268,100,304,300,681,685,701,670,633,635,659,669,654,660,795,787,790,789,2141,1857]} 1. d4 {[%emt 0:00:02]} d5 {[%emt 0:00:50]} 2. c4 {[%emt 0:00:06]} c6 {[%emt 0:00:06]} 3. Nf3 {[%emt 0:00:04]} Nf6 {[%emt 0:00:19]} 4. Nc3 {[%emt 0:00:05]} e6 {[%emt 0:00:26]} 5. e3 {[%emt 0:00:04]} a6 {[%emt 1:31:19]} 6. a4 {[%emt 0:02:26]} Bb4 {[%emt 0:00:00]} 7. Bd2 {[%emt 1:31:13] D15: Slav Defence: 4 Nc3 a6 and gambit lines after 4 Nc3 dxc4.} Nbd7 {[%emt 0:00:00]} 8. Bd3 {[%emt 0:00:00]} O-O {[%emt 0:00:00]} 9. O-O {[%emt 0:00:00][%cal Oc3d5] The position is equal.} Re8 {[%emt 0:00:00] [#]} (9... c5 $11) 10. Nxd5 $1 $16 {[%emt 0:00:00][%mdl 512]} Nxd5 {[%emt 0:00:00]} (10... exd5 11. Bxb4) 11. cxd5 {[%emt 0:00:00]} Bxd2 {[%emt 0:00:00]} 12. dxe6 {[%emt 0:00:00]} ({Reject} 12. Nxd2 exd5 13. b4 (13. Qh5 Nf6 $11) 13... Nf6 $11) 12... Ba5 {[%emt 0:00:00]} 13. exd7 {[%emt 0:00:00] White has more active pieces.} Bxd7 {[%emt 0:00:00]} 14. Ne5 {[%emt 0:00:00][%cal Od3h7]} Be6 {[%emt 0:04:30] [#]} 15. Qc2 $146 {[%emt 0:04:00]} ({Predecessor:} 15. f4 Bb6 16. Qh5 g6 17. Qh6 f5 18. Rf3 Qf6 19. h4 Re7 20. h5 Qg7 21. Qg5 gxh5 {1-0 (28) Aaryan,V (2261)-Ali,N (2113) Abu Dhabi 2018}) 15... Qh4 {[%emt 0:00:30]} 16. Bf5 {[%emt 0:00:30]} Bd5 {[%emt 0:00:30]} 17. e4 {[%emt 0:00:00]} Be6 {[%emt 0:00:30]} 18. Bxe6 {[%emt 0:00:00]} Rxe6 {[%emt 0:00:00]} 19. f4 $36 {[%emt 0:01:30][%cal Oe5f7][%mdl 2048] Nxf7! is the strong threat. Black is under strong pressure.} (19. Qb3 {simplifies} Qe7 20. Nc4 Bc7 21. e5) 19... Bb6 $2 {[%emt 0:00:00] [#]} (19... Rd8 $16) 20. Kh1 $2 {[%emt 0:00:30]} ({Less strong is} 20. Qc4 Rd8 21. Rad1 Qe7 $16) (20. Nxf7 $1 $18 {[%mdl 512] is the precise move to win. And now Ng5 would win.} Bxd4+ (20... Rf6 21. Ng5) 21. Kh1) 20... Bxd4 $2 {[%emt 0:00:00] [#]} (20... Rh6 $16 {keeps fighting.} 21. h3 Qe7) 21. Nxf7 $1 $18 {[%emt 0:00:30]} b5 $2 {[%emt 0:00:00]} (21... Kxf7 22. Qb3 Bxb2) 22. Ng5 {[%emt 0:00:00] White is clearly winning.} Rf6 {[%emt 0:02:30]} 23. g3 {[%emt 0:01:00]} Qh5 {[%emt 0:00:00]} 24. axb5 {[%emt 0:00:00]} cxb5 {[%emt 0:01:00]} 25. Qb3+ {[%emt 0:00:00]} Kh8 {[%emt 0:00:00]} 26. Qd5 {[%emt 0:00:00][%csl LRa8,LRd4]} Raf8 {[%emt 0:00:00]} 27. Qxd4 {[%emt 0:02:00]} Rh6 {[%emt 0:00:43]} 28. Rf2 {[%emt 0:00:00]} Qg4 {[%emt 0:00:17] [#]} 29. Nf7+ $1 {[%emt 0:00:00] White took control after the opening.   Weighted Error Value: White=0.13 (very precise) /Black=0.68} 1-0

[Event "Bangabandhu Premier Div League 2022"]
[Site "Dhaka"]
[Date "2022.12.05"]
[Round "6.7"]
[White "Harikrishnan.A.Ra"]
[Black "Iniyan, P."]
[Result "0-1"]
[ECO "D02"]
[WhiteElo "2409"]
[BlackElo "2534"]
[Annotator "TA"]
[PlyCount "62"]
[EventDate "2022.11.30"]
[EventType "team-tourn"]
[EventCountry "BAN"]
[SourceTitle "playchess.com"]
[Source "ChessBase"]
[SourceQuality "1"]
[TimeControl "40/5400+30:1800+30"]

{[%evp 14,62,6,-6,14,14,16,0,-4,-9,-7,-48,-59,-47,-41,-52,-60,-49,-71,-55,-62,-55,-47,-104,-116,-204,-63,-107,-114,-284,-283,-292,-282,-280,-266,-334,-339,-339,-335,-651,-532,-702,-695,-627,-487,-927,-927,-1275,-1240,-1248,-1221]} 1. d4 {[%emt 0:00:30]} Nf6 {[%emt 0:00:30]} 2. Bf4 {[%emt 0:00:30]} d5 {[%emt 0:00:30]} 3. e3 {[%emt 0:00:30]} e6 {[%emt 0:00:30]} 4. Nf3 {[%emt 0:00:30]} c5 {[%emt 0:00:30]} 5. Nbd2 {[%emt 0:00:30]} Nc6 {[%emt 0:00:30]} 6. c3 {[%emt 0:00:30]} Bd6 {[%emt 0:00:30] 6...cxd4 injects fresh life into this line.} 7. Bg3 {[%emt 0:00:30]} O-O {[%emt 0:00:30]} 8. Bd3 {[%emt 0:00:30]} a5 {[%emt 0:00:30] D02: 1 d4 d5 2 Nf3 sidelines, including 2...Nf6 3 g3 and 2...Nf6 3 Bf4.} 9. Ne5 {[%emt 0:00:30] [#]} Ne7 $146 {[%emt 0:00:30]} ({Predecessor:} 9... c4 10. Bc2 Bxe5 11. dxe5 Nd7 12. Nf3 b5 13. a3 h6 14. Nd4 Ndxe5 15. Nxb5 Qb6 16. a4 Ba6 17. Nd4 Qxb2 18. Kd2 Nxd4 19. Bxe5 Nb3+ 20. Ke2 Nxa1 21. Qxa1 Qxc2+ 22. Kf3 Qe4+ {0-1 (22) Aguilera Prada,A (1531)-Lopez Nunez,A (1675) Alcorcon 2019}) 10. f4 {[%emt 0:00:30]} b6 {[%emt 0:00:30] The position is equal.} 11. Bf2 {[%emt 0:00:30]} Ba6 {[%emt 0:00:30]} 12. Bc2 {[%emt 0:00:30]} cxd4 {[%emt 0:00:30]} 13. exd4 {[%emt 0:00:30]} b5 {[%emt 0:00:30]} 14. O-O {[%emt 0:00:30]} b4 {[%emt 0:00:30] White must now prevent ...bxc3.} 15. Re1 {[%emt 0:00:30]} bxc3 {[%emt 0:00:30]} 16. bxc3 {[%emt 0:00:30]} Qc7 {[%emt 0:00:30]} 17. Re3 {[%emt 0:00:30]} Ng6 {[%emt 0:36:18] Prevents Bh4.} 18. Qf3 {[%emt 1:08:52]} (18. g3 $15) 18... Rab8 $17 {[%emt 0:00:56]} 19. Bb3 {[%emt 0:01:04] [#]} (19. Bxg6 $17 {was called for.} hxg6 20. Qh3) 19... Bb7 {[%emt 0:04:54]} (19... a4 $1 $19 {[%cal Ra4b3]} 20. Bxa4 Rb2) 20. Rae1 {[%emt 0:03:20]} Bc6 {[%emt 0:04:21]} 21. f5 $2 {[%emt 0:04:11] Inhibits a4. White does not recover from this.} (21. Qd1 $17) 21... Bxe5 $19 {[%emt 0:03:54]} 22. Rxe5 {[%emt 0:02:43]} ({Much worse is} 22. dxe5 d4 23. exf6 Bxf3 $19) 22... Nxe5 {[%emt 0:00:16]} 23. dxe5 {[%emt 0:00:29]} Ne4 {[%emt 0:03:36]} 24. Nxe4 {[%emt 0:05:38]} dxe4 {[%emt 0:00:07]} 25. Qf4 {[%emt 0:00:29] [#] Strongly threatening f6.} exf5 {[%emt 0:00:22]} 26. Re3 $2 {[%emt 0:03:33]} (26. Bc5) 26... Rfd8 {[%emt 0:18:05][%cal Bf8d8,Bd8d3,Bd3d2][%mdl 32] ...a4 is the strong threat. Black is clearly winning.} 27. Bh4 {[%emt 0:01:15]} Rd3 {[%emt 0:06:24]} 28. Re1 {[%emt 0:00:30]} e3 {[%emt 0:02:41]} 29. Qxf5 {[%emt 0:02:28]} (29. Bg3 $142 Rxb3 30. axb3) 29... Rd2 {[%emt 0:01:03]} ({Inferior is} 29... Rxc3 30. e6 Rbxb3 31. axb3 $19) 30. Rxe3 {[%emt 0:00:02]} a4 {[%emt 0:03:38]} 31. Bc4 {[%emt 0:02:23]} g6 {[%emt 0:03:38] Weighted Error Value: White=1.09/Black=0.22 (precise)} 0-1

[Event "Bangabandhu Premier Div League 2022"]
[Site "Dhaka"]
[Date "2022.12.05"]
[Round "6.7"]
[White "Nayan Kumar, Mohanto"]
[Black "Kushagra Mohan"]
[Result "0-1"]
[ECO "D79"]
[WhiteElo "1976"]
[BlackElo "2390"]
[Annotator "TA"]
[PlyCount "94"]
[EventDate "2022.12.01"]
[EventCountry "BAN"]
[SourceTitle "playchess.com"]
[Source "ChessBase"]
[SourceQuality "1"]
[TimeControl "40/5400+30:1800+30"]

{[%evp 19,94,-7,-14,-8,-12,-22,-5,-12,-11,-15,0,0,0,-53,-65,-100,-96,-118,-120,-115,-120,-138,-138,-138,-138,-138,-138,-127,-8,-21,0,0,0,0,0,-10,0,-10,-4,-7,0,0,-4,-45,-37,-185,-56,-199,-196,-533,-182,-487,-383,-428,0,-438,-385,-392,-367,-312,-229,-1088,-949,-2026,-1313,-5057,-2407,-4808,-4622,-1854,-1395,-12155,-8950,-4631,-1908,-4845,-17]} 1. d4 {[%emt 0:00:28]} Nf6 {[%emt 0:00:03]} 2. Nf3 {[%emt 0:00:30]} g6 {[%emt 0:00:22]} 3. g3 {[%emt 0:00:14]} Bg7 {[%emt 0:00:01]} 4. Bg2 {[%emt 0:00:12]} c5 {[%emt 1:32:04]} 5. O-O {[%emt 0:01:34]} O-O {[%emt 0:00:00]} 6. c3 {[%emt 1:30:32]} cxd4 {[%emt 0:00:00]} 7. cxd4 {[%emt 0:00:00]} d5 {[%emt 0:00:00]} 8. Nc3 {[%emt 0:00:00]} Ne4 {[%emt 0:02:00]} 9. Qb3 {[%emt 0:01:30]} Nc6 {[%emt 0:00:30]} 10. Rd1 {[%emt 0:00:30]} Nxc3 {[%emt 0:00:30]} 11. Qxc3 {[%emt 0:00:30] D79: Fianchetto Grünfeld: Symmetrical Variation (6 0-0 c6 7 cxd5 cxd5).} Bf5 {[%emt 0:00:30]} 12. Bf4 {[%emt 0:00:30]} Rc8 {[%emt 0:00:00][%cal Oc6d4] Hoping for ...Nxd4!} 13. Qd2 {[%emt 0:00:30] [#] The position is equal.} Be4 $146 {[%emt 0:01:00]} ({Predecessor:} 13... Qb6 14. Ne5 Rfd8 15. Rac1 f6 16. Nxc6 bxc6 17. Qc3 g5 18. Be3 Qa6 19. Bf3 g4 {1-0 (43) Markussen,P (1756)-Sjoberg,I (2078) Fornebu 2017}) 14. Bh6 {[%emt 0:00:30]} Qb6 {[%emt 0:00:30]} 15. Bxg7 {[%emt 0:00:00]} Kxg7 {[%emt 0:00:30]} 16. Rac1 {[%emt 0:01:00]} (16. Ne1 $11) 16... Bxf3 $1 $15 {[%emt 0:00:00]} 17. Bxf3 {[%emt 0:00:00] [#]} Nxd4 $1 {[%emt 0:01:00]} 18. Rxc8 {[%emt 0:01:00]} (18. Bg2 Rxc1) 18... Nxf3+ {[%emt 0:00:00]} 19. exf3 {[%emt 0:00:00]} Rxc8 {[%emt 0:01:00]} 20. Qxd5 {[%emt 0:01:00]} Qxb2 {[%emt 0:00:30][%mdl 4096] Endgame KQR-KQR} 21. Rd2 {[%emt 0:00:30]} Rc1+ {[%emt 0:00:30]} 22. Kg2 {[%emt 0:00:30] [#]} Qa1 {[%emt 0:00:30]} 23. f4 {[%emt 0:00:30]} Qc3 {[%emt 0:00:30]} ({Better is} 23... Rg1+ $17 24. Kh3 Qf6) 24. Re2 $11 {[%emt 0:00:30]} Qc6 {[%emt 0:00:00]} (24... e6 {seems wilder.} 25. Qxb7 Qd4 26. Qb5 Rc5) 25. Qxc6 {[%emt 0:00:00]} Rxc6 {[%emt 0:01:00]} 26. Rxe7 {[%emt 0:00:00] KR-KR} Rb6 {[%emt 0:00:30]} 27. Kf3 {[%emt 0:01:30]} Rb2 {[%emt 0:00:30]} 28. g4 {[%emt 0:00:30]} Kf6 {[%emt 0:00:00]} 29. Rc7 {[%emt 0:00:00]} h5 30. h3 {[%emt 0:01:00]} a5 {[%emt 0:01:30]} 31. Kg3 {[%emt 0:00:30]} a4 {[%emt 0:00:30]} 32. f3 {[%emt 0:00:30]} (32. g5+ $15 Ke6 33. a3) 32... a3 {[%emt 0:00:30]} (32... Rxa2 33. Rxb7 hxg4 34. Rb6+ Kg7 35. fxg4 $11) (32... hxg4 $19 33. fxg4 b5 34. g5+ Ke6 35. Rc6+ Ke7 36. Rc7+ Ke6 37. Rc6+ Kd5) 33. Kh4 {[%emt 0:00:30]} (33. g5+ $2 Ke6 34. Kh4 Rxa2 35. Rxb7 Rh2 $19) ({White should play} 33. f5 $15) 33... b5 $19 {[%emt 0:00:00]} (33... Rxa2 34. Rxb7 Rd2 35. Rb6+ Kg7 36. Ra6 $15) 34. Rc5 $2 {[%emt 0:00:00]} (34. Rb7 {is a better chance.}) 34... b4 $2 {[%emt 0:01:00]} (34... Rxa2 35. Rxb5 Rg2 36. Ra5 $15) (34... hxg4 35. fxg4 Ke6) 35. Rc4 $2 {[%emt 0:00:00]} (35. gxh5 {is more resistant.} Kg7 36. Rb5 (36. h6+ $2 Kxh6 37. Rb5 Rxa2 $19)) 35... Rb1 {[%emt 0:00:30]} (35... Rxa2 36. Rxb4 Rf2 37. Rb6+ Kg7 38. Ra6 $15) 36. Rc2 {[%emt 0:00:00]} Rb2 {[%emt 0:00:00]} 37. Rc4 {[%emt 0:00:00]} hxg4 {[%emt 0:00:00]} (37... Rxa2 38. Rxb4 Rf2 39. Rb6+ Kg7 40. Ra6 $15) 38. fxg4 {[%emt 0:00:14]} Ke6 {[%emt 0:00:00]} ({Inferior is} 38... Rxa2 39. Rxb4 Rh2 40. Ra4 $11) 39. Rd4 {[%emt 0:02:46]} f6 {[%emt 0:00:00][%cal Bf7f6,Bf6f5][%mdl 32]} ({Worse is} 39... Rxa2 40. Rxb4 Rc2 41. Ra4 $11) 40. g5 $2 (40. Kg3) 40... Rb1 {[%emt 0:02:30] Black is clearly winning.} ({And not} 40... Rxa2 41. Rxb4 fxg5+ 42. Kxg5 $17) 41. Rd2 {[%emt 0:31:00]} f5 {[%emt 0:03:56]} 42. Kg3 {[%emt 0:00:00]} b3 {[%emt 0:27:04]} 43. axb3 {[%emt 0:01:00]} Rxb3+ {[%emt 0:00:30]} 44. Kh4 {[%emt 0:00:00]} Rb4 {[%emt 0:00:30]} 45. Kg3 {[%emt 0:01:00] [#]} Ra4 $1 {[%emt 0:00:00]} 46. Ra2 {[%emt 0:00:00]} Kd5 {[%emt 0:01:00] ( -> ...Kc4)} 47. Kh4 {[%emt 0:00:00]} Rxf4+ {[%emt 0:00:30][%mdl 32768] Weighted Error Value: White=0.96/Black=0.26 (precise) . Loss on time!?} 0-1

[Event "Bangabandhu Premier Div League 2022"]
[Site "Dhaka"]
[Date "2022.12.05"]
[Round "6.8"]
[White "Reefat, Bin-Sattar"]
[Black "Asif, Mahmud"]
[Result "1-0"]
[ECO "C54"]
[WhiteElo "2367"]
[BlackElo "1926"]
[Annotator "TA"]
[PlyCount "82"]
[EventDate "2022.11.30"]
[EventType "team-tourn"]
[EventCountry "BAN"]
[SourceTitle "playchess.com"]
[Source "ChessBase"]
[SourceQuality "1"]
[TimeControl "40/5400+30:1800+30"]

{[%evp 10,82,19,16,16,13,26,0,23,-11,19,4,13,-3,-5,-11,8,17,12,16,29,24,39,18,17,19,31,12,5,0,6,15,17,0,46,25,47,0,11,15,18,25,21,9,98,106,197,179,175,172,213,208,300,280,343,314,623,616,629,590,1284,1264,29983,29984,29993,29994,29995,29995,29995,29996,29996,29997,29997,29998,29998]} 1. e4 {[%emt 0:22:00]} e5 {[%emt 0:00:20]} 2. Nf3 {[%emt 0:02:33]} Nc6 {[%emt 0:00:46]} 3. Bc4 {[%emt 0:00:47]} Bc5 {[%emt 0:00:31]} 4. d3 {[%emt 0:00:04]} Nf6 {[%emt 0:00:24]} 5. O-O {[%emt 0:00:37]} d6 {[%emt 0:03:03]} 6. c3 {[%emt 0:05:37]} a5 {[%emt 0:05:03] C54: Giuoco Piano: 4 c3 Nf6, main lines with 5 d4 and 5 d3.} 7. Bb3 {[%emt 0:16:05]} Ba7 {[%emt 0:15:21]} 8. Be3 {[%emt 0:10:53]} O-O {[%emt 0:13:27] The position is equal.} 9. Nbd2 {[%emt 0:00:35]} Re8 {[%emt 0:08:24]} (9... Bxe3 {simplifies} 10. fxe3 Ne7 11. a4 Ng6) 10. h3 {[%emt 0:05:38]} h6 {[%emt 0:08:13]} 11. Re1 {[%emt 0:08:55]} Bxe3 {[%emt 0:09:02]} 12. fxe3 {[%emt 0:10:26] [#]} d5 $146 {[%emt 0:09:47]} ({Predecessor:} 12... Be6 13. d4 Bxb3 14. Qxb3 Qc8 15. Nh4 Nd8 16. Kh2 Ne6 17. Rf1 Ng5 18. Nf5 Kh7 {1-0 (86) Madi,A (2099)-Teh,E (2272) Al Ain 2013}) 13. exd5 {[%emt 0:05:01]} Nxd5 {[%emt 0:00:11]} 14. a3 {[%emt 0:00:48]} Be6 {[%emt 0:08:26]} 15. Ba4 {[%emt 0:03:14]} Bd7 {[%emt 0:08:19]} 16. Ne4 {[%emt 0:04:00]} (16. Nc4 $5 {[%cal Ra4c6]}) 16... Nb6 {[%emt 0:01:11]} 17. Bc2 {[%emt 0:00:21]} Qe7 {[%emt 0:02:34] Inhibits Nc5.} 18. b4 {[%emt 0:00:46]} axb4 {[%emt 0:00:25]} 19. axb4 {[%emt 0:00:03]} Rxa1 {[%emt 0:00:09]} 20. Qxa1 {[%emt 0:00:01]} Ra8 {[%emt 0:00:11]} 21. Qb1 {[%emt 0:01:37]} Nd5 {[%emt 0:01:09]} (21... Bf5 $11 {might be stronger.}) 22. Bb3 {[%emt 0:00:43]} Nf6 {[%emt 0:04:34]} 23. Nc5 {[%emt 0:00:23]} (23. Nxf6+ $14 Qxf6 24. Rf1) 23... Bc8 {[%emt 0:00:00]} 24. d4 {[%emt 0:00:14]} b6 {[%emt 0:00:00] Prevents e4.} 25. Ne4 {[%emt 0:00:05] And now Rf1 would win.} Bf5 $1 {[%emt 0:00:00]} 26. Bc2 {[%emt 0:00:13] aiming for Nxf6+.} Bg6 {[%emt 0:00:42]} (26... Nd7 $1 $11) 27. b5 $36 {[%emt 0:00:34][%mdl 2048] Hoping for Nxf6+. White is on the roll. White now steadily converts the win.} (27. Nxf6+ {simplifies} Qxf6 28. Bxg6 Qxg6 29. Qxg6 fxg6 30. d5) 27... Na5 {[%emt 0:00:54]} (27... Nd8 $16) 28. Nxf6+ $18 {[%emt 0:00:25]} (28. dxe5 Nd7 $15) (28. Nxe5 $6 Bxe4 29. Bxe4 Nxe4 30. Qxe4 Re8 $16) 28... Qxf6 {[%emt 0:00:28]} 29. Bxg6 {[%emt 0:00:30]} ({Stronger than} 29. dxe5 Bxc2 30. Qxc2 (30. exf6 Bxb1 31. Rxb1 Nc4 $11) 30... Qe6 $11) 29... fxg6 {[%emt 0:00:10]} 30. Nxe5 {[%emt 0:00:05][%cal Bf3e5,Be5g6,Bg6f4][%mdl 32]} Rf8 {[%emt 0:00:25]} (30... Qe6 $142 31. Qd3 (31. Nxg6 Nc4 $18) (31. Qxg6 Qxg6 32. Nxg6 Nc4 $18) 31... Re8) 31. Nxg6 {[%emt 0:02:02] Active counter play!} (31. Qxg6 Qf2+ 32. Kh2 Qxe1 $15) 31... Qf2+ {[%emt 0:00:10]} 32. Kh1 {[%emt 0:00:29]} Rf3 {[%emt 0:00:46]} (32... Rf7 33. Ne5 Rf8) 33. Nf4 {[%emt 0:00:27]} (33. gxf3 Qxf3+ 34. Kg1 Qg3+ 35. Kh1 Qf3+ 36. Kh2 Qf2+ 37. Kh1 Qf3+ $11) 33... Rxe3 {[%emt 0:00:45]} 34. Rf1 {[%emt 0:00:14]} Qd2 {[%emt 0:00:26]} 35. Nd5 {[%emt 0:00:55][%cal Od5f6] Nf6+! would kill now.} Re2 {[%emt 0:01:06] [#]} 36. Nf6+ $1 {[%emt 0:00:33][%mdl 512] White mates.} gxf6 {[%emt 0:00:29]} (36... Kf7 37. Ne4+) 37. Qg6+ {[%emt 0:00:01]} Kf8 {[%emt 0:00:24]} 38. Qxf6+ {[%emt 0:00:12]} Ke8 {[%emt 0:00:09]} 39. Qf8+ {[%emt 0:00:01]} Kd7 {[%emt 0:00:30]} 40. Rf7+ {[%emt 0:00:01][%mdl 64] [#] Skewer} Ke6 {[%emt 0:00:15]} 41. Re7+ {[%emt 0:30:01]} Kd5 {[%emt 0:31:51] Weighted Error Value: White=0.08 (flawless) /Black=0.53} 1-0